bitfinex-derivatives/quotes_BTCF0:USTF0_20251125
["timestamp","ask_amount","ask_price","bid_price","bid_amount"]
[1764064511853,0.17892,87140.0,87139.0,0.0114799]
[1764064513754,0.17692,87140.0,87139.0,0.0114799]
[1764064513959,0.17792,87140.0,87139.0,0.0114799]
[1764064514148,0.17892,87140.0,87139.0,0.0114799]
[1764064514351,0.17692,87140.0,87139.0,0.0114799]
[1764064514547,0.17892,87140.0,87139.0,0.0114799]
[1764064514760,0.17792,87140.0,87139.0,0.0114799]
[1764064514956,0.17892,87140.0,87139.0,0.0114799]
[1764064516156,0.17792,87140.0,87139.0,0.0114799]
[1764064516356,0.17892,87140.0,87139.0,0.0114799]
[1764064519166,0.17592,87140.0,87139.0,0.0114799]
[1764064519465,0.17892,87140.0,87139.0,0.0114799]
[1764064519766,0.17692,87140.0,87139.0,0.0114799]
[1764064520062,0.17892,87140.0,87139.0,0.0114799]
[1764064520862,0.17592,87140.0,87139.0,0.0114799]
[1764064521061,0.17892,87140.0,87139.0,0.0114799]
[1764064522466,0.17692,87140.0,87139.0,0.0114799]
[1764064522668,0.17892,87140.0,87139.0,0.0114799]
[1764064522862,0.18417,87132.0,87131.0,0.00017213]
[1764064523764,0.18417,87132.0,87131.0,0.01165303]
[1764064524264,0.18517,87132.0,87131.0,0.01165303]
[1764064525564,0.18617,87132.0,87131.0,0.01165303]
[1764064526470,0.18617,87132.0,87131.0,0.04247176]
[1764064526669,0.18617,87132.0,87131.0,0.01165303]
[1764064528375,0.18617,87132.0,87131.0,0.0528721]
[1764064529370,0.18617,87132.0,87131.0,0.07348163]
[1764064530067,0.18617,87132.0,87131.0,0.01165303]
[1764064530267,0.18517,87132.0,87131.0,0.01165303]
[1764064530468,0.18617,87132.0,87131.0,0.01165303]
[1764064530668,0.18617,87132.0,87131.0,0.07348163]
[1764064531671,0.18617,87132.0,87131.0,0.01165303]
[1764064532964,0.18517,87132.0,87131.0,0.01165303]
[1764064533168,0.18617,87132.0,87131.0,0.01165303]
[1764064534470,0.18617,87132.0,87131.0,0.0735316]
[1764064534679,0.18417,87132.0,87131.0,0.0735316]
[1764064534980,0.18617,87132.0,87131.0,0.01165303]
[1764064535581,0.18617,87132.0,87131.0,0.05290235]
[1764064538088,0.18617,87132.0,87131.0,0.01165303]
[1764064538383,0.18417,87132.0,87131.0,0.01165303]
[1764064538590,0.18617,87132.0,87131.0,0.01165303]
[1764064544983,0.18617,87132.0,87131.0,0.0735316]
[1764064545587,0.0492,87132.0,87131.0,0.15165303]
[1764064545789,0.20448,87140.0,87139.0,0.1335599]
[1764064546790,0.20448,87140.0,87139.0,0.1315599]
[1764064548196,0.20648,87140.0,87139.0,0.1315599]
[1764064548991,0.20548,87140.0,87139.0,0.1315599]
[1764064550595,0.20548,87140.0,87139.0,0.19338288]
[1764064550803,0.08147213,87148.0,87147.0,0.16742]
[1764064550987,0.08315213,87148.0,87147.0,0.16742]
[1764064551386,0.08315213,87148.0,87147.0,0.1788988]
[1764064551891,0.16445213,87148.0,87147.0,0.1788988]
[1764064552204,0.16545213,87148.0,87147.0,0.24057396]
[1764064552395,0.16545213,87148.0,87147.0,0.1788988]
[1764064552593,0.16545213,87148.0,87147.0,0.24057396]
[1764064552898,0.16545213,87148.0,87147.0,0.1788988]
[1764064553100,0.16545213,87148.0,87147.0,0.24055503]
[1764064554400,0.16545213,87148.0,87147.0,0.1788988]
[1764064562301,0.20969213,87148.0,87147.0,0.1788988]
[1764064562502,0.20969213,87148.0,87147.0,0.13688165]
[1764064562693,0.20969213,87148.0,87147.0,0.0958388]
[1764064562898,0.20969213,87148.0,87147.0,0.1725288]
[1764064563306,0.20969213,87148.0,87147.0,0.21357165]
[1764064563801,0.20869213,87148.0,87147.0,0.21357165]
[1764064563999,0.20969213,87148.0,87147.0,0.21357165]
[1764064564298,0.20969213,87148.0,87147.0,0.1725288]
[1764064564901,0.20969213,87148.0,87147.0,0.21357105]
[1764064565210,0.20969213,87148.0,87147.0,0.1725288]
[1764064565712,0.00117213,87148.0,87147.0,0.1725288]
[1764064565905,0.07991213,87148.0,87147.0,0.1725288]
[1764064566105,0.15419213,87148.0,87147.0,0.1725288]
[1764064566501,0.00117213,87148.0,87147.0,0.1725288]
[1764064566697,0.04424,87170.0,87169.0,0.07519]
[1764064566898,0.07874,87170.0,87169.0,0.1633559]
[1764064567105,0.15302,87170.0,87169.0,0.1633559]
[1764064567813,0.15402,87170.0,87169.0,0.1633559]
[1764064568209,0.15602,87170.0,87169.0,0.1633559]
[1764064568603,0.003,87170.0,87169.0,0.1633559]
[1764064568812,0.08174,87170.0,87169.0,0.1633559]
[1764064569911,0.15602,87170.0,87169.0,0.1633559]
[1764064571816,0.003,87170.0,87169.0,0.1633559]
[1764064572199,0.15206,87178.0,87177.0,0.15331]
[1764064572806,0.14359011,87178.0,87177.0,0.1647849]
[1764064573312,0.14759011,87178.0,87177.0,0.1647849]
[1764064574011,0.14559011,87178.0,87177.0,0.1647849]
[1764064574209,0.14459011,87178.0,87177.0,0.1647849]
[1764064574512,0.14659011,87178.0,87177.0,0.1647849]
[1764064575212,0.003,87178.0,87177.0,0.1647849]
[1764064575510,0.17983391,87200.0,87199.0,0.011472]
[1764064575710,0.02777391,87200.0,87197.0,0.0114722]
[1764064575912,0.15206,87198.0,87197.0,0.0114722]
[1764064576212,0.15206,87192.0,87191.0,0.00017202]
[1764064577306,0.15206,87192.0,87191.0,0.15348202]
[1764064577708,0.15406,87192.0,87191.0,0.15348202]
[1764064578409,0.15506,87192.0,87191.0,0.15348202]
[1764064579811,0.15506,87192.0,87191.0,0.00017202]
[1764064580007,0.15506,87192.0,87191.0,0.15348202]
[1764064582808,0.15506,87192.0,87191.0,0.07712202]
[1764064583008,0.15506,87192.0,87191.0,0.15348202]
[1764064583822,0.15506,87192.0,87191.0,0.00017202]
[1764064584419,0.15506,87192.0,87191.0,0.07712202]
[1764064584619,0.15506,87192.0,87191.0,0.15348202]
[1764064586317,0.10802498,87210.0,87198.0,0.0114721]
[1764064586517,0.51802498,87210.0,87198.0,0.0114721]
[1764064586928,0.011472,87200.0,87198.0,0.0114721]
[1764064587519,0.011472,87200.0,87198.0,0.0884221]
[1764064587723,0.011472,87200.0,87198.0,0.0904221]
[1764064588727,0.013472,87200.0,87198.0,0.0914221]
[1764064589023,0.013472,87200.0,87198.0,0.1677821]
[1764064589231,0.002,87200.0,87198.0,0.1677821]
[1764064589421,0.004,87200.0,87198.0,0.1647821]
[1764064590423,0.004,87200.0,87199.0,0.15331]
[1764064595728,0.0114678,87231.0,87228.0,0.12051]
[1764064595921,0.0114678,87231.0,87220.0,0.04415]
[1764064595922,0.011469,87222.0,87221.0,0.00017202]
[1764064596123,0.0114701,87213.0,87212.0,0.04415]
[1764064596330,0.0114701,87214.0,87212.0,0.19746]
[1764064596726,0.0114701,87214.0,87213.0,0.07695]
[1764064596930,0.0114701,87214.0,87213.0,0.15331]
[1764064597528,0.0114691,87221.0,87220.0,0.04415]
[1764064597939,0.0114691,87221.0,87218.0,0.0114694]
[1764064598142,0.0114691,87221.0,87218.0,0.0884194]
[1764064599542,0.0114691,87221.0,87220.0,0.1211]
[1764064600240,0.0114697,87216.0,87215.0,0.1211]
[1764064600440,0.0114697,87216.0,87215.0,0.19746]
[1764064601433,0.0134691,87221.0,87220.0,0.1511]
[1764064601731,0.0134691,87221.0,87220.0,0.19826]
[1764064602337,0.0134691,87221.0,87220.0,0.2097292]
[1764064602641,0.0134691,87221.0,87220.0,0.19826]
[1764064602831,0.0114691,87221.0,87220.0,0.19826]
[1764064603228,0.00017164,87222.0,87221.0,0.1511]
[1764064604643,0.02973164,87222.0,87221.0,0.1011]
[1764064606343,0.02973164,87222.0,87215.0,0.04415]
[1764064606344,0.0390297,87216.0,87215.0,0.19525]
[1764064606647,0.4190297,87216.0,87215.0,0.19525]
[1764064607439,0.02756,87216.0,87215.0,0.19525]
[1764064607640,0.02856,87216.0,87215.0,0.19525]
[1764064610241,0.001,87216.0,87215.0,0.19525]
[1764064610441,0.02856,87216.0,87215.0,0.19525]
[1764064612650,0.43856,87216.0,87215.0,0.19525]
[1764064613748,0.02756,87213.0,87212.0,0.02222]
[1764064614053,0.12656,87209.0,87208.0,0.1511]
[1764064614350,0.55656,87209.0,87208.0,0.1511]
[1764064614848,0.5680307,87209.0,87208.0,0.1511]
[1764064615541,0.12656,87209.0,87208.0,0.1511]
[1764064615737,0.0124702,87213.0,87205.0,0.04733202]
[1764064615943,0.1390302,87213.0,87212.0,0.1511]
[1764064616145,7.5e-07,87231.0,87229.0,0.1511]
[1764064616345,0.1669951,87251.0,87250.0,0.19826]
[1764064616540,0.07618,87241.0,87240.0,0.22763761]
[1764064616751,0.05109,87258.0,87249.0,0.07172]
[1764064616752,0.07783436,87250.0,87249.0,0.07172]
[1764064616954,0.0697653,87250.0,87249.0,0.07172]
[1764064617354,0.0697653,87250.0,87249.0,0.1511]
[1764064618153,0.1259863,87242.0,87241.0,0.00017192]
[1764064618457,0.5559863,87242.0,87241.0,0.00017192]
[1764064618647,0.3159863,87242.0,87241.0,0.00017192]
[1764064619350,0.1259863,87242.0,87241.0,0.18811192]
[1764064619650,0.1269863,87242.0,87241.0,0.18811192]
[1764064619955,0.1269863,87242.0,87241.0,0.09619192]
[1764064620155,0.1269863,87242.0,87241.0,0.18811192]
[1764064620357,0.11552,87242.0,87241.0,0.18811192]
[1764064621058,0.51552,87242.0,87241.0,0.18811192]
[1764064621257,0.11552,87242.0,87241.0,0.18811192]
[1764064621757,0.56552,87242.0,87241.0,0.00017192]
[1764064622153,0.39201865,87242.0,87241.0,0.00017192]
[1764064622559,0.0114658,87246.0,87245.0,0.18794]
[1764064622758,0.0114654,87249.0,87246.0,0.24387]
[1764064622951,0.2814654,87249.0,87246.0,0.19437]
[1764064623752,0.0114657,87247.0,87246.0,0.19437]
[1764064625256,0.0134657,87247.0,87246.0,0.19437]
[1764064626065,0.5134657,87247.0,87246.0,0.19437]
[1764064628359,0.0114663,87242.0,87241.0,0.09619192]
[1764064628665,0.0114663,87242.0,87241.0,0.18811192]
[1764064629461,0.0114655,87249.0,87248.0,0.18794]
[1764064629761,0.0114657,87248.0,87246.0,0.0673957]
[1764064629966,0.0114657,87248.0,87247.0,0.18794]
[1764064630266,0.10875511,87260.0,87259.0,0.18794]
[1764064630464,0.461464,87260.0,87259.0,0.18794]
[1764064630768,1.045944,87260.0,87259.0,0.13794]
[1764064631555,0.5,87260.0,87259.0,0.13794]
[1764064631759,0.5,87260.0,87259.0,0.14294]
[1764064632165,0.1170638,87262.0,87261.0,0.17863]
[1764064632762,0.0114638,87262.0,87261.0,0.17863]
[1764064633171,0.1170632,87266.0,87265.0,0.17863]
[1764064633666,0.6170632,87266.0,87265.0,0.17863]
[1764064633864,0.6056,87266.0,87265.0,0.1900933]
[1764064634274,0.5,87266.0,87265.0,0.1900933]
[1764064634570,0.5,87266.0,87265.0,0.17863]
[1764064635166,0.0642629,87268.0,87267.0,0.17863]
[1764064635474,0.0528,87268.0,87267.0,0.190093]
[1764064636471,0.0548,87268.0,87267.0,0.190093]
[1764064636873,0.002,87268.0,87267.0,0.190093]
[1764064637267,0.00811036,87282.0,87276.0,0.05856]
[1764064637268,0.0114613,87281.0,87276.0,0.05856]
[1764064637467,0.1210612,87281.0,87280.0,0.17863]
[1764064637872,0.1096,87281.0,87280.0,0.17863]
[1764064638268,0.1096,87281.0,87280.0,0.17663]
[1764064638463,0.00811036,87282.0,87281.0,0.1900912]
[1764064640583,0.011459,87299.0,87298.0,0.17863]
[1764064640584,0.141279,87299.0,87298.0,0.17863]
[1764064640782,0.0114583,87303.0,87298.0,0.17863]
[1764064641081,0.04024,87332.0,87304.0,0.05856]
[1764064641288,0.1907077,87308.0,87307.0,0.17863]
[1764064642386,0.17925,87308.0,87307.0,0.17863]
[1764064642690,0.68025,87308.0,87307.0,0.17863]
[1764064643885,1.07025,87308.0,87307.0,0.17863]
[1764064644188,0.1907088,87299.0,87298.0,0.17863]
[1764064645291,0.1917088,87299.0,87298.0,0.17863]
[1764064648787,0.1917088,87299.0,87298.0,0.190089]
[1764064648788,0.001,87299.0,87298.0,0.190089]
[1764064649182,0.1907061,87320.0,87319.0,0.17863]
[1764064649891,0.6907061,87320.0,87319.0,0.17863]
[1764064650292,0.5,87320.0,87319.0,0.17863]
[1764064650895,0.501,87320.0,87319.0,0.17863]
[1764064651299,1.08025,87320.0,87319.0,0.17863]
[1764064651800,0.58025,87320.0,87319.0,0.17863]
[1764064652500,0.18025,87320.0,87319.0,0.17863]
[1764064653294,0.001,87320.0,87319.0,0.17863]
[1764064654102,0.18025,87320.0,87319.0,0.17863]
[1764064654401,0.17925,87312.0,87311.0,0.23736181]
[1764064654997,0.60925,87312.0,87311.0,0.17880181]
[1764064655202,0.60925,87312.0,87311.0,0.03708181]
[1764064655403,0.190708,87305.0,87304.0,0.23719]
[1764064655900,0.190708,87305.0,87297.0,0.23719]
[1764064655901,0.190709,87298.0,87297.0,0.23719]
[1764064656104,0.190709,87298.0,87297.0,0.17863]
[1764064657089,0.191709,87298.0,87297.0,0.17863]
[1764064657701,0.18025,87298.0,87297.0,0.1900891]
[1764064659303,0.17925,87298.0,87297.0,0.1900891]
[1764064659505,0.18025,87298.0,87297.0,0.1900891]
[1764064660107,0.17925,87298.0,87297.0,0.1900891]
[1764064660307,0.18025,87298.0,87297.0,0.1900891]
[1764064660804,0.18025,87298.0,87297.0,0.17863]
[1764064661501,0.191709,87298.0,87297.0,0.17863]
[1764064663911,0.561709,87298.0,87297.0,0.17863]
[1764064665214,0.561709,87298.0,87297.0,0.08691]
[1764064665811,0.561709,87298.0,87297.0,0.18284]
[1764064667811,0.561709,87298.0,87297.0,0.08691]
[1764064668407,0.561709,87298.0,87297.0,0.18284]
[1764064669516,0.18025,87298.0,87297.0,0.18284]
[1764064670013,0.18546,87298.0,87297.0,0.18284]
[1764064671417,0.18546,87298.0,87290.0,0.05856]
[1764064671418,0.18446,87291.0,87290.0,0.24664]
[1764064671619,0.1959199,87291.0,87290.0,0.24664]
[1764064674512,0.18446,87291.0,87290.0,0.24664]
[1764064674722,0.1959199,87291.0,87290.0,0.24664]
[1764064676223,0.18446,87291.0,87290.0,0.24664]
[1764064677621,0.18719991,87299.0,87298.0,0.17618]
[1764064677819,0.58719991,87299.0,87298.0,0.17618]
[1764064678823,0.58819991,87299.0,87298.0,0.17618]
[1764064679321,0.09169111,87299.0,87298.0,0.187639]
[1764064679617,0.17674111,87299.0,87298.0,0.17618]
[1764064680925,0.57674111,87299.0,87298.0,0.17618]
[1764064681324,0.57574111,87299.0,87298.0,0.17618]
[1764064681517,0.00117111,87299.0,87298.0,0.17618]
[1764064682028,1.11e-06,87299.0,87298.0,0.17618]
[1764064682222,0.1830471,87313.0,87312.0,0.22115]
[1764064682425,0.0979978,87307.0,87306.0,0.05303]
[1764064682628,0.1830486,87301.0,87300.0,0.22115]
[1764064683125,0.17159,87301.0,87300.0,0.22115]
[1764064684524,0.57159,87301.0,87300.0,0.16812]
[1764064684722,0.57259,87301.0,87300.0,0.16812]
[1764064684914,0.57259,87301.0,87300.0,0.16612]
[1764064685114,0.57259,87301.0,87300.0,0.21915]
[1764064685525,0.31159,87301.0,87300.0,0.21915]
[1764064686928,0.17159,87301.0,87300.0,0.21915]
[1764064687330,0.08654,87306.0,87305.0,0.16812]
[1764064687518,0.0979976,87309.0,87308.0,0.16812]
[1764064687720,0.1830476,87309.0,87308.0,0.11812]
[1764064689225,0.1840476,87309.0,87308.0,0.11812]
[1764064692530,0.1830476,87309.0,87308.0,0.11812]
[1764064692729,0.1840476,87309.0,87308.0,0.11812]
[1764064693525,0.1840476,87309.0,87308.0,0.06812]
[1764064693725,0.1840476,87309.0,87308.0,0.14996]
[1764064695119,0.1830476,87309.0,87308.0,0.14996]
[1764064695327,0.1840476,87309.0,87308.0,0.14996]
[1764064695933,0.1830476,87309.0,87308.0,0.14996]
[1764064696236,0.17259,87309.0,87308.0,0.14996]
[1764064696834,0.08754,87309.0,87308.0,0.14996]
[1764064697028,0.16974,87309.0,87308.0,0.14996]
[1764064700332,0.1811975,87309.0,87308.0,0.14996]
[1764064701747,0.16974,87309.0,87308.0,0.14996]
[1764064705540,0.16974,87309.0,87306.0,0.0644879]
[1764064705541,0.1172,87320.0,87319.0,0.12082]
[1764064705741,0.4986561,87320.0,87319.0,0.12082]
[1764064706240,0.9986561,87320.0,87319.0,0.12082]
[1764064706742,0.9986561,87320.0,87319.0,0.1322762]
[1764064706743,0.6182,87320.0,87319.0,0.1322762]
[1764064707847,0.1182,87320.0,87319.0,0.1322762]
[1764064709537,0.1182,87320.0,87319.0,0.12082]
[1764064710345,0.1182,87320.0,87319.0,0.1322762]
[1764064710837,0.1182,87320.0,87319.0,0.12082]
[1764064711045,0.5582,87320.0,87319.0,0.12082]
[1764064712035,0.1182,87320.0,87319.0,0.12082]
[1764064712236,0.2982,87320.0,87319.0,0.12082]
[1764064713432,0.1182,87320.0,87319.0,0.12082]
[1764064713630,0.4882,87320.0,87319.0,0.12082]
[1764064714147,0.4882,87320.0,87319.0,0.03523]
[1764064714334,0.16929,87312.0,87311.0,0.17099181]
[1764064714938,0.08617,87312.0,87311.0,0.17099181]
[1764064716241,0.16929,87320.0,87319.0,0.17082]
[1764064717636,0.17029,87320.0,87319.0,0.17082]
[1764064718343,0.001,87320.0,87319.0,0.17082]
[1764064718837,0.16929,87327.0,87326.0,0.12082]
[1764064719042,0.58929,87327.0,87326.0,0.12082]
[1764064719239,0.58929,87327.0,87326.0,0.07172]
[1764064719432,1.08929,87327.0,87326.0,0.15695]
[1764064719837,1.09029,87327.0,87326.0,0.15695]
[1764064720852,0.59029,87327.0,87326.0,0.15695]
[1764064722343,0.58929,87327.0,87326.0,0.1684053]
[1764064722544,0.58929,87327.0,87326.0,0.15695]
[1764064726144,0.58929,87327.0,87326.0,0.10695]
[1764064726740,0.22756,87325.0,87324.0,0.0905955]
[1764064727041,0.64756,87325.0,87324.0,0.1744355]
[1764064728447,0.64756,87325.0,87324.0,0.2324855]
[1764064728448,0.17015,87325.0,87324.0,0.2324855]
[1764064729847,0.17015,87325.0,87324.0,0.1744355]
[1764064731052,0.17015,87325.0,87324.0,0.1724355]
[1764064731455,0.17015,87325.0,87324.0,0.133891]
[1764064733155,0.17015,87325.0,87324.0,0.191941]
[1764064733853,0.17015,87325.0,87324.0,0.133891]
[1764064735757,0.17015,87325.0,87324.0,0.1224355]
[1764064737262,0.55015,87325.0,87324.0,0.1224355]
[1764064737753,0.55015,87325.0,87324.0,0.1631655]
[1764064738260,0.17015,87325.0,87324.0,0.1631655]
[1764064738457,0.33015,87325.0,87324.0,0.1631655]
[1764064739758,0.17015,87325.0,87324.0,0.1631655]
[1764064743768,0.17015,87325.0,87324.0,0.1137655]
[1764064744165,0.19427,87321.0,87320.0,0.37894]
[1764064744369,0.2057259,87321.0,87320.0,0.37894]
[1764064745568,0.19427,87321.0,87320.0,0.37894]
[1764064749181,0.2057259,87321.0,87320.0,0.37894]
[1764064750873,0.6057259,87321.0,87320.0,0.2]
[1764064751778,1.1057259,87321.0,87320.0,0.2]
[1764064753075,1.1057259,87321.0,87320.0,0.29438]
[1764064753980,1.1057259,87321.0,87320.0,0.24488]
[1764064755375,0.61815765,87321.0,87320.0,0.33571]
[1764064755778,0.95815765,87321.0,87320.0,0.33571]
[1764064756178,0.95815765,87321.0,87320.0,0.24488]
[1764064756480,0.95815765,87321.0,87320.0,0.33571]
[1764064756684,0.66815765,87321.0,87320.0,0.33571]
[1764064756884,0.86815765,87321.0,87320.0,0.33571]
[1764064758785,0.36815765,87321.0,87320.0,0.33571]
[1764064759787,0.36815765,87321.0,87320.0,0.33371]
[1764064762498,0.11815765,87321.0,87320.0,0.38954]
[1764064763297,0.11815765,87321.0,87320.0,0.34004]
[1764064766896,0.55815765,87321.0,87320.0,0.34004]
[1764064767596,0.55815765,87321.0,87320.0,0.28421]
[1764064767797,0.55815765,87321.0,87320.0,0.34004]
[1764064769799,0.34815765,87321.0,87320.0,0.34004]
[1764064771591,0.34815765,87321.0,87320.0,0.29064]
[1764064771998,0.11815765,87321.0,87320.0,0.29064]
[1764064772485,0.48815765,87321.0,87320.0,0.29064]
[1764064773497,0.48815765,87321.0,87320.0,0.0496]
[1764064774501,0.48815765,87321.0,87320.0,0.14398]
[1764064774900,0.98815765,87321.0,87320.0,0.14398]
[1764064775501,0.98815765,87321.0,87320.0,0.23481]
[1764064775704,1.01539187,87321.0,87320.0,0.23481]
[1764064779697,1.01539187,87321.0,87320.0,0.18531]
[1764064787813,1.01539187,87321.0,87320.0,0.13581]
[1764064788412,1.01539187,87321.0,87320.0,0.19767]
[1764064790614,1.01539187,87321.0,87320.0,0.13581]
[1764064791613,1.01539187,87321.0,87320.0,0.04498]
[1764064792005,1.01539187,87321.0,87320.0,0.13976]
[1764064795513,1.19623187,87321.0,87320.0,0.13976]
[1764064796118,1.19623187,87321.0,87320.0,0.09026]
[1764064796313,1.19623187,87321.0,87320.0,0.17976]
[1764064798018,1.01074945,87321.0,87320.0,0.17976]
[1764064798217,1.2545,87321.0,87320.0,0.17976]
[1764064800522,0.198807,87313.0,87312.0,0.24011]
[1764064801522,0.18735,87313.0,87312.0,0.24011]
[1764064802419,0.18735,87313.0,87312.0,0.27075455]
[1764064804018,0.20621,87323.0,87322.0,0.2143858]
[1764064804215,0.20621,87323.0,87322.0,0.20293]
[1764064804518,0.20621,87323.0,87322.0,0.15353]
[1764064805929,0.20621,87323.0,87316.0,0.03067118]
[1764064806219,0.20621,87323.0,87270.0,0.21826928]
[1764064806220,0.20621,87299.0,87298.0,0.13480118]
[1764064806424,0.20621,87297.0,87296.0,0.20293]
[1764064806928,0.20621,87297.0,87296.0,0.23360118]
[1764064807228,0.35621,87297.0,87296.0,0.20293]
[1764064807818,0.35621,87297.0,87296.0,0.10413]
[1764064808017,0.59621,87297.0,87296.0,0.10413]
[1764064808423,0.59621,87297.0,87296.0,0.20293]
[1764064808925,0.61319104,87297.0,87296.0,0.20293]
[1764064809124,0.20621,87289.0,87288.0,0.20310181]
[1764064809328,0.2176701,87289.0,87288.0,0.20310181]
[1764064809915,0.6576701,87289.0,87288.0,0.20310181]
[1764064810119,0.6576701,87289.0,87288.0,0.00017181]
[1764064810314,0.2176718,87276.0,87275.0,0.26325]
[1764064810825,0.20621,87276.0,87275.0,0.26325]
[1764064811134,0.70699,87289.0,87288.0,0.20041]
[1764064811929,0.20699,87281.0,87280.0,0.26038181]
[1764064812427,0.62699,87281.0,87280.0,0.00017181]
[1764064813621,0.62699,87281.0,87265.0,0.0598]
[1764064813622,0.20699,87266.0,87265.0,0.2716733]
[1764064814118,0.20699,87266.0,87265.0,0.26021]
[1764064815328,0.20699,87266.0,87265.0,0.2716733]
[1764064816922,0.2184532,87266.0,87265.0,0.26021]
[1764064817724,0.20699,87266.0,87265.0,0.2716733]
[1764064818238,0.10796,87266.0,87265.0,0.2716733]
[1764064822239,0.2184525,87271.0,87270.0,0.20041]
[1764064824332,0.20699,87271.0,87270.0,0.20041]
[1764064826030,0.20699,87271.0,87270.0,0.2118726]
[1764064826231,0.20699,87271.0,87270.0,0.20041]
[1764064829334,0.2184542,87258.0,87240.0,0.0598]
[1764064829636,0.20699,87241.0,87240.0,0.26021]
[1764064829838,0.06282,87260.0,87259.0,0.20041]
[1764064829839,0.20699,87260.0,87259.0,0.20041]
[1764064830227,0.20699,87260.0,87259.0,0.2098741]
[1764064830424,0.2070796,87260.0,87259.0,0.2098741]
[1764064831432,0.2080796,87260.0,87259.0,0.2098741]
[1764064837241,0.2080796,87260.0,87259.0,0.19841]
[1764064838541,0.2499896,87260.0,87259.0,0.09875]
[1764064838738,0.20699,87252.0,87251.0,0.20058192]
[1764064838937,0.2070796,87252.0,87251.0,0.20058192]
[1764064840034,0.2080796,87252.0,87251.0,0.20058192]
[1764064850043,0.0010896,87252.0,87251.0,0.20058192]
[1764064851038,0.2050596,87252.0,87251.0,0.20058192]
[1764064852344,0.244115,87252.0,87251.0,0.20208192]
[1764064852941,0.244115,87252.0,87251.0,0.09821192]
[1764064854141,0.244115,87252.0,87251.0,0.20208192]
[1764064854846,0.2442046,87252.0,87251.0,0.20208192]
[1764064855047,0.26208709,87252.0,87251.0,0.20208192]
[1764064855242,0.26200683,87252.0,87251.0,0.09821192]
[1764064855443,0.41935683,87252.0,87251.0,0.20208192]
[1764064855648,0.0976458,87246.0,87245.0,0.25897]
[1764064855946,0.4976458,87246.0,87245.0,0.20897]
[1764064857551,0.4976458,87246.0,87245.0,0.00706]
[1764064857747,0.2007068,87238.0,87237.0,0.18901192]
[1764064857954,0.2807068,87238.0,87237.0,0.18901192]
[1764064858552,0.5807068,87238.0,87237.0,0.18901192]
[1764064858848,0.5807068,87238.0,87237.0,0.09576192]
[1764064859148,0.3007964,87238.0,87237.0,0.18901192]
[1764064859350,0.5807964,87238.0,87237.0,0.00017192]
[1764064859544,0.5807068,87238.0,87237.0,0.09576192]
[1764064859848,1.0807068,87238.0,87237.0,0.09576192]
[1764064860244,1.0807068,87238.0,87237.0,0.18901192]
[1764064860640,0.7007068,87238.0,87237.0,0.18901192]
[1764064860841,0.59222,87238.0,87237.0,0.18901192]
[1764064861047,0.68924,87238.0,87237.0,0.18901192]
[1764064861250,0.90924,87238.0,87237.0,0.18901192]
[1764064861654,0.68924,87238.0,87237.0,0.18901192]
[1764064862260,0.75924,87238.0,87237.0,0.18901192]
[1764064862552,1.05924,87238.0,87237.0,0.09576192]
[1764064862942,0.2007084,87226.0,87225.0,0.24686]
[1764064863153,0.18924,87226.0,87225.0,0.24686]
[1764064864056,0.1893296,87226.0,87225.0,0.24686]
[1764064864551,0.18924,87226.0,87225.0,0.09559]
[1764064864942,0.18924,87226.0,87225.0,0.24686]
[1764064865247,0.18924,87226.0,87225.0,0.18884]
[1764064865448,0.44924,87226.0,87225.0,0.18884]
[1764064865855,0.44924,87226.0,87217.0,0.18895469]
[1764064865856,0.2007095,87218.0,87217.0,0.18895469]
[1764064866050,0.4607095,87218.0,87217.0,0.18895469]
[1764064866250,0.4607095,87218.0,87217.0,0.09570469]
[1764064866749,0.44924,87218.0,87200.0,0.15522183]
[1764064866954,0.44924,87218.0,87209.0,0.18884]
[1764064866955,0.2007106,87210.0,87209.0,0.18884]
[1764064867148,0.09222,87217.0,87216.0,0.24686]
[1764064867347,0.18924,87217.0,87216.0,0.24686]
[1764064867757,0.18924,87211.0,87210.0,0.24686]
[1764064867956,0.2007104,87211.0,87210.0,0.24686]
[1764064868560,0.18924,87211.0,87210.0,0.24686]
[1764064871062,0.2007104,87211.0,87210.0,0.24686]
[1764064875959,0.18924,87211.0,87210.0,0.24686]
[1764064876160,0.1932896,87217.0,87216.0,0.1895]
[1764064877470,0.18182,87217.0,87216.0,0.1895]
[1764064878268,0.00017192,87226.0,87220.0,0.00474]
[1764064878463,0.09286192,87226.0,87225.0,0.24424]
[1764064879070,0.00017192,87226.0,87225.0,0.24224]
[1764064879271,0.00026152,87226.0,87225.0,0.24224]
[1764064885566,0.01172992,87226.0,87225.0,0.24224]
[1764064886683,0.01172992,87226.0,87225.0,0.1875]
[1764064886684,0.20294992,87226.0,87225.0,0.1875]
[1764064887980,0.20286032,87226.0,87225.0,0.1875]
[1764064888581,0.57286032,87226.0,87225.0,0.08993]
[1764064889280,1.07286032,87226.0,87225.0,0.1875]
[1764064890682,0.81286032,87226.0,87225.0,0.1875]
[1764064893080,0.0114691,87221.0,87220.0,0.14]
[1764064893282,0.2026891,87221.0,87220.0,0.04243]
[1764064893784,0.2026891,87221.0,87220.0,0.14]
[1764064893988,0.19122,87211.0,87210.0,0.15522183]
[1764064894179,0.1913096,87211.0,87210.0,0.24752]
[1764064894779,0.19122,87211.0,87210.0,0.1895]
[1764064898280,0.1913096,87211.0,87210.0,0.1895]
[1764064898488,0.19122,87211.0,87210.0,0.1895]
[1764064899584,0.19122,87211.0,87205.0,0.05474]
[1764064899585,0.19122,87201.0,87200.0,0.54144183]
[1764064899893,0.1913096,87201.0,87200.0,0.44424]
[1764064901398,8.96e-05,87201.0,87200.0,0.44424]
[1764064901593,0.18044192,87226.0,87225.0,0.18569]
[1764064901888,0.43044192,87226.0,87225.0,0.13619]
[1764064902287,1.04512016,87226.0,87225.0,0.18205]
[1764064902480,1.05658856,87226.0,87225.0,0.18205]
[1764064903291,1.05658856,87226.0,87215.0,0.23666]
[1764064903292,0.1917397,87216.0,87215.0,0.23666]
[1764064903789,0.18027,87216.0,87215.0,0.23666]
[1764064905196,0.18027,87225.0,87224.0,0.18569]
[1764064905597,0.1917385,87225.0,87224.0,0.18569]